fUSD/lending_fUSD_20240628
["ID","MTS","AMOUNT","RATE_DAILY","PERIOD"]
[330597566,1719609040796,-150.0,0.00022756,2]
[330597568,1719609040806,-150.0,0.0002276,2]
[330597570,1719609040816,-150.0,0.00022762,2]
[330597572,1719609040827,-150.0,0.00022763,2]
[330597574,1719609040837,-150.0,0.00022777,2]
[330597576,1719609040847,-150.0,0.00022778,2]
[330597578,1719609040858,-150.0,0.00022782,2]
[330597580,1719609040869,-150.0,0.00022783,2]
[330597582,1719609040880,-150.0,0.00022784,2]
[330597584,1719609040890,-150.0,0.00022785,2]
[330597586,1719609040900,-150.0,0.00022791,2]
[330597589,1719609040910,-150.0,0.00022795,2]
[330597592,1719609040920,-150.0,0.00022803,2]
[330597595,1719609040931,-150.0,0.00022803,2]
[330597598,1719609040943,-150.0,0.00022807,2]
[330597600,1719609040953,-150.0,0.00022809,2]
[330597602,1719609040964,-150.0,0.0002281,2]
[330597604,1719609040975,-150.0,0.00022813,2]
[330597606,1719609040986,-150.0,0.00022815,2]
[330597608,1719609041000,-150.0,0.00022818,2]
[330597610,1719609041012,-150.0,0.0002282,2]
[330597611,1719609041023,-150.0,0.00022824,2]
[330597612,1719609041035,-150.0,0.00022825,2]
[330597614,1719609041048,-150.0,0.0002283,2]
[330597616,1719609041060,-150.0,0.00022834,2]
[330597618,1719609041071,-150.0,0.00022842,2]
[330597620,1719609041082,-150.0,0.00022845,2]
[330597622,1719609041093,-150.0,0.00022845,2]
[330597625,1719609041103,-150.0,0.00022848,2]
[330597627,1719609041113,-150.0,0.00022849,2]
[330597629,1719609041123,-150.0,0.0002285,2]
[330597631,1719609041133,-150.0,0.00022853,2]
[330597633,1719609041144,-150.0,0.00022864,2]
[330597635,1719609041153,-150.0,0.00022885,2]
[330597637,1719609041163,-150.0,0.00022887,2]
[330597639,1719609041174,-1565.06234661,0.0002289,2]
[330597641,1719609041184,-74948.9747,0.0002289,2]
[330597643,1719609041196,-10000.0,0.0002289,2]
[330597645,1719609041207,-315.1428,0.0002289,2]
[330597647,1719609041217,-150.0,0.00022893,2]
[330597649,1719609041228,-150.0,0.00022893,2]
[330597651,1719609041238,-150.0,0.00022894,2]
[330597653,1719609041248,-150.0,0.00022895,2]
[330597655,1719609041258,-150.0,0.00022895,2]
[330597657,1719609041268,-150.0,0.00022897,2]
[330597659,1719609041278,-1000.0,0.00022899,2]
[330597661,1719609041288,-150.0,0.00022899,2]
[330597664,1719609041298,-312.4,0.000229,2]
[330597666,1719609041311,-150.0,0.00022906,2]
[330597668,1719609041321,-150.0,0.00022907,2]
[330597670,1719609041331,-150.0,0.00022917,2]
[330597672,1719609041341,-150.0,0.00022917,2]
[330597674,1719609041352,-150.0,0.00022917,2]
[330597676,1719609041361,-150.0,0.00022918,2]
[330597678,1719609041372,-150.0,0.00022919,2]
[330597680,1719609041382,-150.0,0.00022921,2]
[330597682,1719609041392,-150.0,0.00022923,2]
[330597684,1719609041402,-150.0,0.00022926,2]
[330597686,1719609041412,-150.0,0.00022927,2]
[330597688,1719609041422,-150.0,0.00022929,2]
[330597690,1719609041432,-150.0,0.00022929,2]
[330597692,1719609041445,-150.0,0.0002293,2]
[330597695,1719609041455,-150.0,0.00022931,2]
[330597697,1719609041464,-150.0,0.00022933,2]
[330597699,1719609041473,-150.0,0.00022934,2]
[330597701,1719609041483,-150.0,0.00022934,2]
[330597703,1719609041493,-150.0,0.00022935,2]
[330597705,1719609041502,-150.0,0.00022937,2]
[330597707,1719609041511,-150.0,0.00022944,2]
[330597709,1719609041520,-150.0,0.00022945,2]
[330597711,1719609041530,-150.0,0.00022948,2]
[330597713,1719609041540,-150.0,0.00022948,2]
[330597715,1719609041550,-150.0,0.00022948,2]
[330597717,1719609041559,-150.0,0.00022949,2]
[330597719,1719609041570,-150.0,0.00022954,2]
[330597721,1719609041580,-150.0,0.00022954,2]
[330597723,1719609041590,-150.0,0.00022955,2]
[330597725,1719609041600,-150.0,0.00022957,2]
[330597727,1719609041610,-150.0,0.00022959,2]
[330597729,1719609041620,-150.0,0.00022961,2]
[330597731,1719609041631,-150.0,0.00022964,2]
[330597733,1719609041641,-150.0,0.00022964,2]
[330597735,1719609041650,-150.0,0.00022966,2]
[330597737,1719609041661,-150.0,0.00022968,2]
[330597739,1719609041671,-150.0,0.00022969,2]
[330597741,1719609041681,-150.0,0.0002297,2]
[330597743,1719609041694,-150.0,0.0002297,2]
[330597745,1719609041704,-150.0,0.00022973,2]
[330597747,1719609041714,-150.0,0.00022975,2]
[330597749,1719609041724,-150.0,0.00022977,2]
[330597751,1719609041734,-150.0,0.00022977,2]
[330597753,1719609041744,-150.0,0.00022978,2]
[330597755,1719609041753,-1292.0,0.00022979,2]
[330597757,1719609041763,-166.25695155,0.0002298,2]
[330597759,1719609041772,-166.25695155,0.0002298,2]
[330597761,1719609041782,-248.93,0.0002298,2]
[330597763,1719609041792,-248.93,0.0002298,2]
[330597765,1719609041801,-248.93,0.0002298,2]
[330597767,1719609041811,-248.93,0.0002298,2]
[330597769,1719609041820,-248.93,0.0002298,2]
[330597771,1719609041830,-248.93,0.0002298,2]
[330597773,1719609041840,-248.93,0.0002298,2]
[330597776,1719609041850,-248.93,0.0002298,2]
[330597778,1719609041859,-248.93,0.0002298,2]
[330597780,1719609041868,-248.93,0.0002298,2]
[330597782,1719609041878,-248.93,0.0002298,2]
[330597784,1719609041887,-248.93,0.0002298,2]
[330597786,1719609041897,-248.93,0.0002298,2]
[330597788,1719609041906,-248.93,0.0002298,2]
[330597790,1719609041916,-248.93,0.0002298,2]
[330597792,1719609041925,-248.93,0.0002298,2]
[330597794,1719609041935,-248.93,0.0002298,2]
[330597796,1719609041947,-248.93,0.0002298,2]
[330597798,1719609041956,-248.93,0.0002298,2]
[330597800,1719609041965,-248.93,0.0002298,2]
[330597801,1719609041975,-248.93,0.0002298,2]
[330597803,1719609041985,-248.93,0.0002298,2]
[330597806,1719609041995,-248.93,0.0002298,2]
[330597807,1719609042005,-248.93,0.0002298,2]
[330597810,1719609042017,-248.93,0.0002298,2]
[330597812,1719609042027,-248.93,0.0002298,2]
[330597813,1719609042039,-248.93,0.0002298,2]
[330597816,1719609042050,-248.93,0.0002298,2]
[330597818,1719609042060,-248.93,0.0002298,2]
[330597820,1719609042070,-248.93,0.0002298,2]
[330597822,1719609042079,-248.93,0.0002298,2]
[330597824,1719609042094,-248.93,0.0002298,2]
[330597826,1719609042104,-248.93,0.0002298,2]
[330597828,1719609042115,-248.93,0.0002298,2]
[330597829,1719609042124,-248.93,0.0002298,2]
[330597831,1719609042134,-248.93,0.0002298,2]
[330597833,1719609042144,-248.93,0.0002298,2]
[330597835,1719609042154,-248.93,0.0002298,2]
[330597837,1719609042163,-248.93,0.0002298,2]
[330597839,1719609042173,-248.93,0.0002298,2]
[330597840,1719609042183,-248.93,0.0002298,2]
[330597841,1719609042195,-248.93,0.0002298,2]
[330597842,1719609042204,-248.93,0.0002298,2]
[330597843,1719609042214,-248.93,0.0002298,2]
[330597844,1719609042223,-248.93,0.0002298,2]
[330597845,1719609042232,-248.93,0.0002298,2]
[330597846,1719609042242,-248.93,0.0002298,2]
[330597847,1719609042252,-248.93,0.0002298,2]
[330597848,1719609042262,-248.93,0.0002298,2]
[330597849,1719609042271,-248.93,0.0002298,2]
[330597850,1719609042281,-248.93,0.0002298,2]
[330597851,1719609042291,-248.93,0.0002298,2]
[330597852,1719609042300,-248.93,0.0002298,2]
[330597853,1719609042310,-248.93,0.0002298,2]
[330597854,1719609042319,-248.93,0.0002298,2]
[330597855,1719609042328,-248.93,0.0002298,2]
[330597856,1719609042338,-248.93,0.0002298,2]
[330597857,1719609042348,-248.93,0.0002298,2]
[330597858,1719609042358,-248.93,0.0002298,2]
[330597859,1719609042367,-248.93,0.0002298,2]
[330597860,1719609042377,-248.93,0.0002298,2]
[330597861,1719609042386,-248.93,0.0002298,2]
[330597862,1719609042396,-248.93,0.0002298,2]
[330597863,1719609042405,-248.93,0.0002298,2]
[330597864,1719609042414,-248.93,0.0002298,2]
[330597865,1719609042424,-248.93,0.0002298,2]
[330597866,1719609042835,-248.93,0.0002298,2]
[330597867,1719609042845,-248.93,0.0002298,2]
[330597868,1719609042855,-248.93,0.0002298,2]
[330597869,1719609042866,-248.93,0.0002298,2]
[330597870,1719609042876,-248.93,0.0002298,2]
[330597871,1719609042885,-248.93,0.0002298,2]
[330597872,1719609042895,-248.93,0.0002298,2]
[330597873,1719609042904,-248.93,0.0002298,2]
[330597875,1719609042914,-248.93,0.0002298,2]
[330597877,1719609042923,-248.93,0.0002298,2]
[330597879,1719609042932,-248.93,0.0002298,2]
[330597880,1719609042942,-248.93,0.0002298,2]
[330597882,1719609042952,-248.93,0.0002298,2]
[330597883,1719609042962,-248.93,0.0002298,2]
[330597885,1719609042972,-248.93,0.0002298,2]
[330597887,1719609042982,-248.93,0.0002298,2]
[330597889,1719609042991,-248.93,0.0002298,2]
[330597890,1719609043007,-150.0,0.00022981,2]
[330597891,1719609043017,-12982.4145653,0.00022983,2]
[330597892,1719609043027,-150.0,0.00022983,2]
[330597893,1719609043039,-365.52714413,0.00022983,2]
[330597894,1719609043050,-7534.5370695,0.00022984,2]
[330597895,1719609043061,-940.2143919,0.00022984,2]
[330597896,1719609043071,-4343.6670619,0.00022984,2]
[330597897,1719609043083,-150.0,0.00022986,2]
[330597898,1719609043095,-150.0,0.00022987,2]
[330597899,1719609043105,-150.0,0.00022987,2]
[330597900,1719609043115,-150.0,0.00022987,2]
[330597901,1719609043124,-180.32618,0.00022989,2]
[330597902,1719609043133,-45195.52961734,0.0002299,7]
[330597903,1719609043143,-142842.80706819,0.0002299,5]
[330597942,1719609043799,-657.80939958,0.0002299,5]
[330597944,1719609043811,-2831.64,0.0002299,5]
[330597946,1719609043823,-11338.36342012,0.0002299,5]
[330597950,1719609043873,-999.32303624,0.0002299,5]
[330597951,1719609043884,-736.10038563,0.0002299,5]
[330597952,1719609043939,-524.35718894,0.00021862,2]
[330597953,1719609043949,-5517.22508459,0.0002299,5]
[330597954,1719609043960,-1809.99254456,0.0002299,5]
[330597955,1719609043989,-248.93,0.0002298,2]
[330597956,1719609043998,-241.4321,0.0002299,5]
[330597957,1719609044012,-1139.11643078,0.0002299,5]
[330597958,1719609044024,-1880.85,0.0002299,5]
[330597959,1719609044036,-325.93999993,0.0002299,5]
[330597960,1719609044103,-248.93,0.0002298,2]
[330597961,1719609044113,-24166.92499929,0.0002299,5]
[330597962,1719609044124,-2253.62392482,0.0002299,5]
[330597963,1719609044166,-524.35718894,0.00021896,2]
[330597964,1719609044175,-523.5974776,0.0002299,5]
[330597965,1719609044186,-1182.3902614,0.0002299,5]
[330597966,1719609044199,-17129.51154448,0.0002299,5]
[330597967,1719609044210,-202414.04946367,0.0002299,5]
[330598219,1719609046738,-524.35718894,0.00021907,2]
[330598221,1719609046748,-524.35718894,0.00021908,2]
[330598223,1719609046758,-524.35718894,0.0002199,2]
[330598225,1719609046767,-524.35718894,0.0002199,2]
[330598228,1719609046779,-524.35718894,0.0002199,2]
[330598229,1719609046789,-524.35718894,0.0002199,2]
[330598230,1719609046799,-524.35718894,0.0002199,2]
[330598232,1719609046810,-524.35718894,0.0002199,2]
[330598233,1719609046819,-524.35718894,0.0002199,2]
[330598234,1719609046829,-524.35718894,0.0002199,2]
[330598235,1719609046839,-524.35718894,0.0002199,2]
[330598236,1719609046849,-150.0,0.00022718,2]
[330598237,1719609046858,-150.0,0.00022722,2]
[330598238,1719609046869,-1.35472788,0.00022724,2]
[330598250,1719609046980,-524.35718894,0.0002199,2]
[330598252,1719609046990,-462.51,0.0002199,2]
[330598254,1719609047001,-150.0,0.00022717,2]
[330598256,1719609047012,-148.64527212,0.00022724,2]
[330598258,1719609047022,-150.0,0.00022727,2]
[330598260,1719609047031,-150.0,0.00022727,2]
[330598262,1719609047042,-150.0,0.00022733,2]
[330598264,1719609047053,-150.0,0.00022735,2]
[330598266,1719609047063,-150.0,0.00022746,2]
[330598268,1719609047073,-150.0,0.00022749,2]
[330598270,1719609047082,-150.0,0.00022756,2]
[330598272,1719609047095,-150.0,0.00022764,2]
[330598274,1719609047104,-150.0,0.00022768,2]
[330598276,1719609047114,-150.0,0.00022768,2]
[330598278,1719609047123,-150.0,0.00022771,2]
[330598280,1719609047132,-150.0,0.00022777,2]
[330598282,1719609047141,-150.0,0.00022777,2]
[330598284,1719609047150,-150.0,0.00022782,2]
[330598286,1719609047160,-150.0,0.00022783,2]
[330598288,1719609047169,-150.0,0.00022789,2]
[330598290,1719609047178,-19.01196156,0.00022794,2]
[330598292,1719609047189,-130.98803844,0.00022794,2]
[330598294,1719609047200,-150.0,0.00022798,2]
[330598296,1719609047209,-150.0,0.00022807,2]
[330598298,1719609047218,-150.0,0.00022812,2]
[330598300,1719609047228,-150.0,0.00022815,2]
[330598302,1719609047236,-150.0,0.00022816,2]
[330598304,1719609047246,-150.0,0.00022816,2]
[330598306,1719609047255,-150.0,0.00022818,2]
[330598308,1719609047264,-150.0,0.0002282,2]
[330598310,1719609047274,-150.0,0.00022827,2]
[330598312,1719609047283,-150.0,0.00022828,2]
[330598314,1719609047293,-150.0,0.00022841,2]
[330598316,1719609047302,-150.0,0.00022843,2]
[330598318,1719609047311,-150.0,0.00022848,2]
[330598320,1719609047322,-150.0,0.00022855,2]
[330598322,1719609047331,-150.0,0.00022856,2]
[330598324,1719609047340,-150.0,0.00022868,2]
[330598326,1719609047350,-56.50821109,0.0002287,2]
[330598328,1719609047361,-93.49178891,0.0002287,2]
[330598330,1719609047371,-150.0,0.00022871,2]
[330598332,1719609047380,-150.0,0.00022871,2]
[330598334,1719609047390,-150.0,0.00022873,2]
[330598336,1719609047399,-150.0,0.00022878,2]
[330598338,1719609047409,-150.0,0.00022887,2]
[330598340,1719609047418,-150.0,0.00022888,2]
[330598342,1719609047427,-150.0,0.00022896,2]
[330598344,1719609047438,-150.0,0.00022898,2]
[330598346,1719609047451,-150.0,0.00022901,2]
[330598349,1719609047460,-150.0,0.00022901,2]
[330598350,1719609047469,-150.0,0.00022903,2]
[330598353,1719609047479,-150.0,0.00022906,2]
[330598355,1719609047488,-2100.0,0.00022907,2]
[330598356,1719609047497,-150.0,0.00022911,2]
[330598359,1719609047507,-150.0,0.00022927,2]
[330598361,1719609047517,-150.0,0.00022929,2]
[330598363,1719609047527,-150.0,0.00022931,2]
[330598365,1719609047536,-150.0,0.00022933,2]
[330598367,1719609047546,-150.0,0.00022934,2]
[330598369,1719609047555,-150.0,0.00022937,2]
[330598371,1719609047564,-150.0,0.00022938,2]
[330598373,1719609047573,-150.0,0.0002294,2]
[330598375,1719609047583,-150.0,0.00022944,2]
[330598377,1719609047592,-150.0,0.00022945,2]
[330598379,1719609047602,-150.0,0.00022946,2]
[330598381,1719609047611,-150.0,0.0002295,2]
[330598383,1719609047621,-150.0,0.00022954,2]
[330598385,1719609047632,-150.0,0.00022955,2]
[330598387,1719609047642,-150.0,0.00022962,2]
[330598389,1719609047651,-150.0,0.00022966,2]
[330598391,1719609047661,-150.0,0.00022968,2]
[330598393,1719609047671,-150.0,0.00022971,2]
[330598395,1719609047680,-150.0,0.00022978,2]
[330598397,1719609047690,-150.0,0.00022979,2]
[330598399,1719609047702,-248.93,0.0002298,2]
[330598401,1719609047711,-248.93,0.0002298,2]
[330598403,1719609047719,-248.93,0.0002298,2]
[330598405,1719609047728,-178.55416667,0.0002298,2]
[330598407,1719609047740,-70.37583333,0.0002298,2]
[330598409,1719609047749,-248.93,0.0002298,2]
[330598411,1719609047759,-38.38899214,0.0002298,2]
[330598413,1719609047771,-210.54100786,0.0002298,2]
[330598415,1719609047781,-248.93,0.0002298,2]
[330598418,1719609047790,-248.93,0.0002298,2]
[330598419,1719609047800,-248.93,0.0002298,2]
[330598422,1719609047809,-248.93,0.0002298,2]
[330598424,1719609047819,-248.93,0.0002298,2]
[330598425,1719609047828,-248.93,0.0002298,2]
[330598427,1719609047837,-248.93,0.0002298,2]
[330598429,1719609047847,-248.93,0.0002298,2]
[330598432,1719609047857,-3924.10793307,0.0002299,5]
[330598582,1719609049783,-155.0,0.00019964,2]
[330598583,1719609049793,-274.34971866,0.00021781,2]
[330598584,1719609049805,-225.65028134,0.00021781,2]
[330598585,1719609049815,-343.26513763,0.0002199,2]
[330598586,1719609049827,-181.09205131,0.0002199,2]
[330598587,1719609049836,-524.35718894,0.0002199,2]
[330598589,1719609049846,-84.13080033,0.0002199,2]
[330598593,1719609049887,-440.22638861,0.0002199,2]
[330598595,1719609049896,-524.35718894,0.0002199,2]
[330598597,1719609049908,-524.35718894,0.0002199,2]
[330598599,1719609049918,-184.96876772,0.0002199,2]
[330598601,1719609049931,-339.38842122,0.0002199,2]
[330598603,1719609049940,-373.07938476,0.0002199,2]
[330598607,1719609049968,-151.27780418,0.0002199,2]
[330598609,1719609049981,-211.40627113,0.0002199,2]
[330598611,1719609049993,-312.95091781,0.0002199,2]
[330598613,1719609050004,-524.35718894,0.0002199,2]
[330598615,1719609050018,-499.99,0.00022717,2]
[330598617,1719609050028,-150.0,0.00022723,2]
[330598619,1719609050039,-150.0,0.0002274,2]
[330598621,1719609050048,-150.0,0.0002275,2]
[330598623,1719609050060,-277.98838538,0.00022754,2]
[330598625,1719609050071,-150.0,0.0002278,2]
[330598627,1719609050081,-150.0,0.00022822,2]
[330598629,1719609050092,-150.0,0.00022828,2]
[330598631,1719609050102,-150.0,0.00022845,2]
[330598633,1719609050112,-150.0,0.00022846,2]
[330598635,1719609050122,-213.03593628,0.0002289,4]
[330598637,1719609050131,-150.0,0.00022912,2]
[330598639,1719609050141,-150.0,0.0002292,2]
[330598641,1719609050150,-150.0,0.00022922,2]
[330598643,1719609050159,-150.0,0.0002297,2]
[330598645,1719609050169,-365.52714413,0.00022973,2]
[330598647,1719609050178,-150.0,0.00022982,2]
[330598649,1719609050188,-809.80687487,0.0002299,5]
[330598653,1719609050220,-1188.35,0.0002299,5]
[330598655,1719609050231,-543.624636,0.0002299,5]
[330598658,1719609050243,-2223.96986429,0.0002299,5]
[330598660,1719609050254,-756.71535306,0.0002299,5]
[330598662,1719609050265,-380.37468551,0.0002299,5]
[330598664,1719609050276,-697.34999995,0.0002299,5]
[330598666,1719609050288,-1286.27,0.0002299,5]
[330598675,1719609050357,-524.35718894,0.0002199,2]
[330598677,1719609050366,-274.17350649,0.0002299,5]
[330598679,1719609050377,-487.94323696,0.0002299,5]
[330598681,1719609050388,-255.41169921,0.0002299,5]
[330598683,1719609050399,-3214.27958353,0.0002299,5]
[330605192,1719609198076,25256.11808844,0.00011199,2]
[330605193,1719609203070,5592.90095688,0.00011199,2]
[330605194,1719609225435,2828.06320888,0.00011199,2]
[330605195,1719609257240,6220.54215746,0.00011199,2]
[330605196,1719609257415,3391.35870222,0.00011199,2]
[330605198,1719609288906,1054.20873751,0.00011199,2]
[330605199,1719609299091,1251.4146222,0.00011199,2]
[330605200,1719609311404,1745.34205599,0.00011199,2]
[330605202,1719609322339,1133.92751376,0.00011199,2]
[330605203,1719609337284,887.22900173,0.00011199,2]
[330605207,1719609370813,647.07170086,0.00011199,2]
[330605211,1719609422126,450.15761108,0.00011199,2]
[330605212,1719609440170,238.05871063,0.00011199,2]
[330605216,1719609459652,161.61017561,0.00011199,2]
[330605221,1719609476663,430.54118397,0.00011199,2]
[330605225,1719609488357,202.92897469,0.00011199,2]
[330605226,1719609494356,283.54219834,0.00011199,2]
[330605228,1719609496145,230.26092555,0.00011199,2]
[330605229,1719609502848,199.58307848,0.00011199,2]
[330605231,1719609509483,378.60177253,0.00011199,2]
[330605233,1719609518021,368.59840723,0.00011199,2]
[330605234,1719609520825,944.25093946,0.00011199,2]
[330605237,1719609537764,175.50755339,0.00011199,2]
[330605241,1719609548889,310.0,0.00011199,2]
[330605250,1719609606111,19608.51382202,0.00011199,2]
[330605282,1719609822818,518.04242089,0.00011199,2]
[330605284,1719609868381,155.0,0.00011199,2]
[330605285,1719609879919,202.44445,0.00011199,2]
[330605286,1719609891612,61189.23152356,0.00011199,2]
[330605287,1719610008729,155.0,0.00011199,2]
[330605312,1719610107820,155.0,0.00011199,2]
[330605343,1719610232418,-308.31366619,0.00012314,2]
[330605345,1719610232430,-217.83145952,0.00012314,2]
[330605347,1719610232442,-2496.05954048,0.00013416,2]
[330605351,1719610232508,-254.99054113,0.00013416,2]
[330605352,1719610232517,-265.83015482,0.00013472,2]
[330605353,1719610232527,-689.52308795,0.00013574,2]
[330605354,1719610232536,-1365.50633314,0.00013574,2]
[330605355,1719610232545,-300.21600683,0.00013574,2]
[330605356,1719610232556,-5000.0,0.00015,2]
[330605357,1719610232565,-2314.0,0.000163,2]
[330605358,1719610232575,-489.92583295,0.00017091,2]
[330605359,1719610232584,-477.7,0.00017817,2]
[330605360,1719610232595,-370.20131552,0.00018,2]
[330605361,1719610232605,-400.0,0.00018384,2]
[330605362,1719610232614,-3199.0,0.00018386,2]
[330605363,1719610232623,-186.25831349,0.00018386,2]
[330605364,1719610232635,-1796.74168651,0.00018386,2]
[330605365,1719610232644,-5161.0,0.00018386,2]
[330605366,1719610232654,-290.0,0.00018386,2]
[330605367,1719610232664,-2957.27260356,0.00018386,2]
[330605371,1719610232743,-396.24892489,0.00018386,2]
[330605372,1719610232754,-2442.47847155,0.00018386,2]
[330605373,1719610232763,-1660.0,0.00018386,2]
[330605374,1719610232773,-394.583,0.00018386,2]
[330605375,1719610232783,-788.1795791,0.00018759,2]
[330605376,1719610232792,-558.92632452,0.00018864,2]
[330605377,1719610232802,-527.78130282,0.00018899,2]
[330605378,1719610232811,-238.09297227,0.00018899,2]
[330605379,1719610232820,-235.24436806,0.00018899,2]
[330605380,1719610232830,-160.18011309,0.00018899,2]
[330605381,1719610232839,-155.0,0.00018899,2]
[330605382,1719610232848,-155.0,0.00018919,2]
[330605383,1719610232857,-345.97900744,0.00018919,2]
[330605384,1719610232867,-297.36585903,0.00018919,2]
[330605385,1719610232877,-1000.0,0.00018921,2]
[330605386,1719610232886,-526.05327897,0.00018999,2]
[330605387,1719610232895,-300.0,0.00019,2]
[330605388,1719610232904,-226.99073299,0.00019069,2]
[330605389,1719610232914,-519.99643975,0.00019077,2]
[330605390,1719610232923,-304.86533253,0.00019389,2]
[330605391,1719610232932,-296.71594966,0.00019451,2]
[330605392,1719610232942,-155.56751306,0.00019565,2]
[330605393,1719610232951,-188.48,0.00019623,2]
[330605394,1719610232960,-250.0,0.00019731,2]
[330605395,1719610232970,-339.508947,0.00019899,2]
[330605396,1719610232980,-867.21230229,0.0002,2]
[330605397,1719610232989,-155.0,0.0002,2]
[330605398,1719610232999,-155.0,0.0002,2]
[330605399,1719610233008,-151.712675,0.00020035,2]
[330605400,1719610233018,-250.0,0.00020039,2]
[330605401,1719610233027,-208.77,0.00020047,2]
[330605402,1719610233036,-431.0,0.0002007,2]
[330605403,1719610233046,-477.7,0.00020081,2]
[330605404,1719610233055,-6166.48,0.00020087,2]
[330605405,1719610233065,-716.13847324,0.00020102,2]
[330605406,1719610233074,-151.712675,0.00020536,2]
[330605407,1719610233083,-150.0,0.00020688,2]
[330605408,1719610233092,-2417.7639,0.0002097,2]
[330605409,1719610233101,-225.11133665,0.00021,2]
[330605410,1719610233111,-202.878597,0.00021,2]
[330605411,1719610233120,-1039.71595388,0.00021,2]
[330605412,1719610233132,-210.28404612,0.00021,2]
[330605413,1719610233142,-151.712675,0.00021037,2]
[330605414,1719610233151,-44125.50066922,0.0002107,2]
[330605415,1719610233161,-168.19,0.00021187,3]
[330605416,1719610233170,-40086.0,0.00021197,2]
[330605417,1719610233179,-1000.0,0.00021287,2]
[330605418,1719610233190,-2100.0,0.00021308,2]
[330605419,1719610233199,-1686.60241462,0.000214,2]
[330605420,1719610233209,-500.0,0.00021561,2]
[330605421,1719610233218,-500.0,0.00021569,2]
[330605422,1719610233228,-500.0,0.00021578,2]
[330605423,1719610233239,-500.0,0.00021587,2]
[330605424,1719610233249,-500.0,0.00021596,2]
[330605425,1719610233260,-500.0,0.00021605,2]
[330605426,1719610233271,-500.0,0.00021613,2]
[330605427,1719610233281,-500.0,0.00021622,2]
[330605428,1719610233291,-500.0,0.00021631,2]
[330605429,1719610233301,-500.0,0.0002164,2]
[330605430,1719610233310,-158.08,0.00021644,2]
[330605431,1719610233319,-341.02,0.00021644,2]
[330605432,1719610233329,-500.0,0.00021649,2]
[330605433,1719610233338,-500.0,0.00021657,2]
[330605434,1719610233348,-500.0,0.00021666,2]
[330605435,1719610233358,-500.0,0.00021675,2]
[330605436,1719610233368,-500.0,0.00021684,2]
[330605437,1719610233383,-500.0,0.00021693,2]
[330605438,1719610233392,-2556.86457868,0.000217,2]
[330605439,1719610233402,-500.0,0.00021701,2]
[330605440,1719610233411,-500.0,0.0002171,2]
[330605441,1719610233422,-500.0,0.00021719,2]
[330605442,1719610233431,-500.0,0.00021728,2]
[330605443,1719610233441,-500.0,0.00021737,2]
[330605444,1719610233450,-500.0,0.00021745,2]
[330605445,1719610233462,-500.0,0.00021754,2]
[330605446,1719610233472,-500.0,0.00021763,2]
[330605447,1719610233481,-500.0,0.00021772,2]
[330605448,1719610233490,-883.13,0.00021918,2]
[330605449,1719610233501,-166.08,0.00021918,2]
[330605450,1719610233511,-4390.0915,0.00021936,2]
[330605451,1719610233520,-327.02420312,0.00021974,2]
[330605452,1719610233530,-693.7,0.00022,2]
[330605453,1719610233540,-256.11,0.00022027,2]
[330605454,1719610233549,-6274.87852259,0.00022061,2]